[Event "ESP-ch Rapid 2018"]
[Site "Linares"]
[Date "2018.08.19"]
[Round "7"]
[White "Galiana Fernandez, Adrian"]
[Black "Gavilan Diaz, Mario"]
[Result "0-1"]
[ECO "A05"]
[WhiteElo "2291"]
[BlackElo "2334"]
[Annotator "NA"]
[PlyCount "52"]
[EventDate "2018.08.19"]
[EventType "team-tourn"]
[EventCountry "ESP"]
[SourceTitle "playchess.com"]
[Source "ChessBase"]
[SourceQuality "1"]
[TimeControl "900+5"]

1. Nf3 {[%emt 0:00:00]} Nf6 {[%emt 0:00:00]} 2. b3 {[%emt 0:00:01]} g6 {[%emt 0:00:04]} 3. Bb2 {[%emt 0:00:02]} Bg7 {[%emt 0:00:01]} 4. g3 {[%emt 0:00:01]} O-O {[%emt 0:00:03]} 5. Bg2 {[%emt 0:00:01]} d6 {[%emt 0:00:01]} 6. d4 {[%emt 0:00:07]} e5 {[%emt 0:00:04]} 7. dxe5 {[%emt 0:00:02]} Ng4 {[%emt 0:00:02]} 8. Nbd2 {[%emt 0:00:20]} Nc6 {[%emt 0:00:14]} 9. O-O {[%emt 0:02:08]} Ngxe5 {[%emt 0:00:32]} 10. Qc1 {[%emt 0:00:08]} Re8 {[%emt 0:00:12]} 11. e3 {[%emt 0:00:49]} a5 {[%emt 0:03:02]} 12. a4 {[%emt 0:00:27]} Bg4 {[%emt 0:02:51]} 13. h3 {[%emt 0:01:27]} Bd7 {[%emt 0:00:19]} 14. Nxe5 {[%emt 0:00:04]} Nxe5 {[%emt 0:00:11]} 15. Kh2 {[%emt 0:01:23]} Bc6 {[%emt 0:01:42]} 16. e4 {[%emt 0:00:04]} Nd7 {[%emt 0:00:38]} 17. f4 {[%emt 0:02:06]} f5 {[%emt 0:01:52]} 18. Bxg7 {[%emt 0:03:13]} Kxg7 {[%emt 0:00:02]} 19. exf5 {[%emt 0:00:16]} Re2 {[%emt 0:00:17]} 20. Nf3 {[%emt 0:00:04]} gxf5 {[%emt 0:00:12]} 21. Qd1 {[%emt 0:00:46]} Qe7 {[%emt 0:00:37]} 22. Qd4+ {[%emt 0:01:18]} Qf6 {[%emt 0:00:38]} 23. Qc4 {[%emt 0:01:52]} Rae8 {[%emt 0:00:38]} 24. Kg1 {[%emt 0:00:05]} R8e4 {[%emt 0:01:33]} 25. Qd3 {[%emt 0:00:01]} R4e3 {[%emt 0:00:00]} 26. Qc4 {[%emt 0:00:00]} Nb6 {[%emt 0:00:22]} 0-1

[Event "ESP-ch Rapid 2018"]
[Site "Linares"]
[Date "2018.08.19"]
[Round "7"]
[White "Martin Rueda, Daniel"]
[Black "Salgado Lopez, Ivan"]
[Result "0-1"]
[ECO "A45"]
[WhiteElo "2267"]
[BlackElo "2643"]
[Annotator "ChessBase"]
[PlyCount "85"]
[EventDate "2018.08.19"]
[EventType "team-tourn"]
[EventCountry "ESP"]
[SourceTitle "playchess.com"]
[Source "ChessBase"]
[SourceQuality "1"]
[TimeControl "900+5"]

1. d4 {[%emt 0:00:00]} Nf6 {[%emt 0:00:00]} 2. Bg5 {[%emt 0:00:01]} c5 {[%emt 0:00:00]} 3. d5 {[%emt 0:00:02]} h6 {[%emt 0:00:16]} 4. Bxf6 {[%emt 0:00:18]} exf6 {[%emt 0:00:02]} 5. c3 {[%emt 0:00:09]} d6 {[%emt 0:00:07]} 6. e3 {[%emt 0:00:19]} g6 {[%emt 0:00:13]} 7. g3 {[%emt 0:01:19]} Bg7 {[%emt 0:00:08]} 8. Bg2 {[%emt 0:00:02]} O-O {[%emt 0:00:08]} 9. a4 {[%emt 0:00:50]} f5 {[%emt 0:00:05]} 10. Ne2 {[%emt 0:00:05]} Nd7 {[%emt 0:00:10]} 11. Na3 {[%emt 0:01:07]} Ne5 {[%emt 0:00:10]} 12. O-O {[%emt 0:00:41]} h5 {[%emt 0:01:00]} 13. h4 {[%emt 0:00:35]} Re8 {[%emt 0:00:17]} 14. Nf4 {[%emt 0:00:15]} Bd7 {[%emt 0:00:30]} 15. Qb3 {[%emt 0:01:05]} Qb6 {[%emt 0:00:15]} 16. Qc2 {[%emt 0:04:23]} Qa6 {[%emt 0:00:51]} 17. b3 {[%emt 0:00:01]} Rac8 {[%emt 0:00:23]} 18. c4 {[%emt 0:00:34]} Ng4 {[%emt 0:00:27]} 19. Ra2 {[%emt 0:00:49]} Qa5 {[%emt 0:00:30]} 20. Nd3 {[%emt 0:00:25]} a6 {[%emt 0:00:10]} 21. Rb1 {[%emt 0:00:26]} Qd8 {[%emt 0:00:18]} 22. b4 {[%emt 0:00:22]} b6 {[%emt 0:01:37]} 23. a5 {[%emt 0:00:42]} bxa5 {[%emt 0:00:23]} 24. bxa5 {[%emt 0:01:00]} Rb8 {[%emt 0:00:51]} 25. Rxb8 {[%emt 0:00:32]} Qxb8 {[%emt 0:00:02]} 26. Nb1 {[%emt 0:00:06]} Qc7 {[%emt 0:00:23]} 27. Nd2 {[%emt 0:00:10]} Rb8 {[%emt 0:00:06]} 28. Ra3 {[%emt 0:00:13]} Rb7 {[%emt 0:00:27]} 29. Rb3 {[%emt 0:00:11]} Rxb3 {[%emt 0:00:27]} 30. Nxb3 {[%emt 0:00:17]} Ba4 {[%emt 0:00:05]} 31. Qa2 {[%emt 0:00:02]} Bxb3 {[%emt 0:00:05]} 32. Qxb3 {[%emt 0:00:02]} Qxa5 {[%emt 0:00:01]} 33. Qb8+ {[%emt 0:00:02]} Bf8 {[%emt 0:00:01]} 34. Bf1 {[%emt 0:00:09]} Qa2 {[%emt 0:00:06]} 35. Qb2 {[%emt 0:00:27]} Qa4 {[%emt 0:00:40]} 36. Nf4 {[%emt 0:00:06]} a5 {[%emt 0:00:15]} 37. Kg2 {[%emt 0:00:08]} Qb4 {[%emt 0:00:09]} 38. Nd3 {[%emt 0:00:07]} Qxc4 {[%emt 0:00:08]} 39. Nf4 {[%emt 0:00:07]} Qb4 {[%emt 0:00:06]} 40. Qc2 {[%emt 0:00:02]} a4 {[%emt 0:00:31]} 41. Bd3 {[%emt 0:00:01]} Qe1 {[%emt 0:01:15]} 42. Bc4 {[%emt 0:00:06]} Qxe3 {[%emt 0:00:24]} 43. Kf1 0-1

[Event "ESP-ch Rapid 2018"]
[Site "Linares"]
[Date "2018.08.19"]
[Round "7"]
[White "Silva Rodriguez, Fernando"]
[Black "Ladron De Guevara Pinto, Paolo"]
[Result "0-1"]
[ECO "D45"]
[WhiteElo "2239"]
[BlackElo "2424"]
[Annotator "NA RC"]
[PlyCount "84"]
[EventDate "2018.08.19"]
[EventType "team-tourn"]
[EventCountry "ESP"]
[SourceTitle "playchess.com"]
[Source "ChessBase"]
[SourceQuality "1"]
[TimeControl "900+5"]

1. d4 {[%emt 0:00:00]} d5 {[%emt 0:00:00]} 2. c4 {[%emt 0:00:00]} e6 {[%emt 0:00:00]} 3. Nf3 {[%emt 0:00:01]} Nf6 {[%emt 0:00:00]} 4. Nc3 {[%emt 0:00:02]} c6 {[%emt 0:00:01]} 5. e3 {[%emt 0:00:02]} Nbd7 {[%emt 0:00:01]} 6. Qc2 {[%emt 0:00:02]} Bd6 {[%emt 0:00:05]} 7. Be2 {[%emt 0:00:03]} O-O {[%emt 0:00:06]} 8. O-O {[%emt 0:00:03]} b6 {[%emt 0:00:04]} 9. e4 {[%emt 0:00:23]} dxe4 {[%emt 0:00:07]} 10. Nxe4 {[%emt 0:00:02]} Nxe4 {[%emt 0:00:58]} 11. Qxe4 {[%emt 0:00:03]} Bb7 {[%emt 0:00:03]} 12. Bf4 {[%emt 0:01:13]} Nf6 {[%emt 0:00:25]} 13. Qe3 {[%emt 0:00:06]} c5 {[%emt 0:00:01]} 14. Bxd6 {[%emt 0:02:05]} Qxd6 {[%emt 0:00:02]} 15. dxc5 {[%emt 0:00:07]} bxc5 {[%emt 0:00:22]} 16. Ne5 {[%emt 0:00:11]} Ne4 {[%emt 0:01:19]} 17. Nd3 {[%emt 0:00:44]} f5 {[%emt 0:02:14]} 18. Bf3 {[%emt 0:01:05]} Rac8 {[%emt 0:00:28]} 19. Rfd1 {[%emt 0:00:14]} Rfd8 {[%emt 0:01:15]} 20. Rac1 {[%emt 0:00:36]} Qc7 {[%emt 0:00:20]} 21. a3 {[%emt 0:00:33]} h6 {[%emt 0:00:10]} 22. b4 {[%emt 0:00:18]} cxb4 {[%emt 0:01:19]} 23. axb4 {[%emt 0:00:02]} Qb6 {[%emt 0:00:06]} 24. h3 {[%emt 0:06:33]} Rd4 {[%emt 0:02:22]} 25. Nc5 {[%emt 0:00:11]} Rxd1+ {[%emt 0:00:29]} 26. Rxd1 {[%emt 0:00:01]} Qxb4 {[%emt 0:00:30]} 27. Nxe4 {[%emt 0:00:04]} fxe4 {[%emt 0:00:34]} 28. Bxe4 {[%emt 0:00:02]} Qa4 {[%emt 0:01:11]} 29. Rd4 {[%emt 0:01:38]} Bxe4 {[%emt 0:01:07]} 30. Rxe4 {[%emt 0:00:19]} Rxc4 {[%emt 0:00:26]} 31. Rxe6 {[%emt 0:00:21]} Rc8 {[%emt 0:00:47]} 32. Re7 {[%emt 0:00:03]} Qd1+ {[%emt 0:00:02]} 33. Kh2 {[%emt 0:00:05]} Qd6+ {[%emt 0:00:01]} 34. g3 {[%emt 0:00:05]} a5 {[%emt 0:00:20]} 35. Ra7 {[%emt 0:00:02]} Qc5 {[%emt 0:00:21]} 36. Qe6+ {[%emt 0:00:27]} Kh8 {[%emt 0:00:01]} 37. Qf7 {[%emt 0:00:07]} Qe5 {[%emt 0:00:13]} 38. Re7 {[%emt 0:00:08]} Qd4 {[%emt 0:00:04]} 39. Rd7 {[%emt 0:00:04]} Qe5 {[%emt 0:00:02]} 40. Re7 {[%emt 0:00:01]} Qc3 {[%emt 0:00:03]} 41. Re3 {[%emt 0:00:11]} Qb2 {[%emt 0:00:09]} 42. Qd7 {[%emt 0:00:04]} Qxf2+ {[%emt 0:00:03]} 0-1

[Event "ESP-ch Rapid 2018"]
[Site "Linares"]
[Date "2018.08.19"]
[Round "7"]
[White "Sande Edreira, Jose Antonio"]
[Black "Salvador Lopez, Daniel"]
[Result "1-0"]
[ECO "A15"]
[WhiteElo "2230"]
[BlackElo "2162"]
[Annotator "NA"]
[PlyCount "78"]
[EventDate "2018.08.19"]
[EventType "team-tourn"]
[EventCountry "ESP"]
[SourceTitle "playchess.com"]
[Source "ChessBase"]
[SourceQuality "1"]
[TimeControl "900+5"]

1. c4 {[%emt 0:00:00]} Nf6 {[%emt 0:00:00]} 2. g3 {[%emt 0:00:00]} e6 {[%emt 0:00:07]} 3. Nf3 {[%emt 0:00:01]} d5 {[%emt 0:00:03]} 4. b3 {[%emt 0:00:01]} Be7 {[%emt 0:00:14]} 5. Bg2 {[%emt 0:00:04]} O-O {[%emt 0:00:03]} 6. O-O {[%emt 0:00:03]} a5 {[%emt 0:00:15]} 7. Nc3 {[%emt 0:00:13]} c6 {[%emt 0:01:07]} 8. e3 {[%emt 0:00:28]} Na6 {[%emt 0:00:28]} 9. Bb2 {[%emt 0:00:08]} Nc5 {[%emt 0:00:16]} 10. d4 {[%emt 0:00:12]} Nce4 {[%emt 0:00:16]} 11. Nd2 {[%emt 0:00:30]} Nxc3 {[%emt 0:00:17]} 12. Bxc3 {[%emt 0:00:01]} c5 {[%emt 0:00:49]} 13. Qc2 {[%emt 0:00:25]} b6 {[%emt 0:00:59]} 14. Rfd1 {[%emt 0:00:16]} Bb7 {[%emt 0:00:24]} 15. dxc5 {[%emt 0:00:05]} Bxc5 {[%emt 0:00:24]} 16. Qb2 {[%emt 0:00:20]} Be7 {[%emt 0:01:45]} 17. cxd5 {[%emt 0:00:14]} Bxd5 {[%emt 0:01:18]} 18. Nc4 {[%emt 0:00:03]} Qc7 {[%emt 0:00:22]} 19. Bxd5 {[%emt 0:00:44]} exd5 {[%emt 0:00:10]} 20. Nd2 {[%emt 0:00:16]} Ba3 {[%emt 0:00:55]} 21. Qxa3 {[%emt 0:00:50]} Qxc3 {[%emt 0:00:03]} 22. Rac1 {[%emt 0:00:01]} Qe5 {[%emt 0:00:17]} 23. Rc6 {[%emt 0:01:04]} b5 {[%emt 0:00:23]} 24. Qc5 {[%emt 0:00:51]} Qh5 {[%emt 0:00:31]} 25. Rc1 {[%emt 0:00:44]} Qe2 {[%emt 0:00:37]} 26. Qc2 {[%emt 0:01:34]} Rfe8 {[%emt 0:00:49]} 27. Qd1 {[%emt 0:00:30]} Qd3 {[%emt 0:00:38]} 28. Nf3 {[%emt 0:00:07]} Qe4 {[%emt 0:00:01]} 29. R1c5 {[%emt 0:00:41]} Rab8 {[%emt 0:00:50]} 30. Rc7 {[%emt 0:00:17]} h6 {[%emt 0:00:29]} 31. Nd4 {[%emt 0:00:37]} a4 {[%emt 0:00:03]} 32. b4 {[%emt 0:00:08]} Ng4 {[%emt 0:00:40]} 33. Qf3 {[%emt 0:00:09]} Qb1+ {[%emt 0:00:29]} 34. Rc1 {[%emt 0:00:06]} Qg6 {[%emt 0:00:04]} 35. Qxd5 {[%emt 0:00:28]} Ne5 {[%emt 0:00:16]} 36. Nc6 {[%emt 0:00:44]} Nd3 37. Rd1 {[%emt 0:01:15]} Nb2 {[%emt 0:00:49]} 38. Rd4 {[%emt 0:00:31]} Qb1+ {[%emt 0:00:25]} 39. Kg2 {[%emt 0:00:03]} Qg6 1-0

[Event "ESP-ch Rapid 2018"]
[Site "Linares"]
[Date "2018.08.19"]
[Round "7"]
[White "Perera Borrego, Maria Adela"]
[Black "Arjol Lopez, Daniel"]
[Result "0-1"]
[ECO "E47"]
[WhiteElo "2177"]
[BlackElo "2137"]
[Annotator "NA"]
[PlyCount "166"]
[EventDate "2018.08.19"]
[EventType "team-tourn"]
[EventCountry "ESP"]
[SourceTitle "playchess.com"]
[Source "ChessBase"]
[SourceQuality "1"]
[TimeControl "900+5"]

1. d4 {[%emt 0:00:00]} Nf6 {[%emt 0:00:00]} 2. c4 {[%emt 0:00:00]} e6 {[%emt 0:00:00]} 3. Nc3 {[%emt 0:00:03]} Bb4 {[%emt 0:00:00]} 4. e3 {[%emt 0:00:04]} O-O {[%emt 0:00:02]} 5. Bd3 {[%emt 0:00:02]} b6 {[%emt 0:00:08]} 6. Nf3 {[%emt 0:00:03]} Bb7 {[%emt 0:00:01]} 7. O-O {[%emt 0:00:04]} d6 {[%emt 0:00:02]} 8. Bd2 {[%emt 0:00:30]} Nbd7 {[%emt 0:00:02]} 9. Re1 {[%emt 0:00:04]} Rc8 {[%emt 0:00:07]} 10. e4 {[%emt 0:00:36]} e5 {[%emt 0:00:01]} 11. d5 {[%emt 0:00:38]} a5 {[%emt 0:00:10]} 12. Rc1 {[%emt 0:00:44]} Bxc3 {[%emt 0:01:37]} 13. Rxc3 {[%emt 0:00:21]} c6 {[%emt 0:00:01]} 14. Bb1 {[%emt 0:00:19]} Nc5 {[%emt 0:00:28]} 15. Bg5 {[%emt 0:00:54]} h6 {[%emt 0:00:12]} 16. Bh4 {[%emt 0:00:15]} b5 {[%emt 0:01:47]} 17. b3 {[%emt 0:01:13]} b4 {[%emt 0:00:26]} 18. Rce3 {[%emt 0:00:12]} Rc7 {[%emt 0:00:01]} 19. Nd2 {[%emt 0:01:01]} Bc8 {[%emt 0:00:18]} 20. h3 {[%emt 0:00:07]} g5 {[%emt 0:00:15]} 21. Bg3 {[%emt 0:01:04]} Ne8 {[%emt 0:02:46]} 22. dxc6 {[%emt 0:00:49]} Ng7 {[%emt 0:00:32]} 23. Nf1 {[%emt 0:00:15]} Nge6 {[%emt 0:00:42]} 24. Qh5 {[%emt 0:00:38]} Kh7 {[%emt 0:00:51]} 25. Rd1 {[%emt 0:00:01]} Ng7 {[%emt 0:00:28]} 26. Qe2 {[%emt 0:00:15]} Qe7 {[%emt 0:00:25]} 27. f4 {[%emt 0:01:51]} gxf4 {[%emt 0:00:20]} 28. Bxf4 {[%emt 0:00:01]} Rxc6 {[%emt 0:01:36]} 29. Bg3 {[%emt 0:00:28]} f5 {[%emt 0:00:58]} 30. exf5 {[%emt 0:00:50]} Bxf5 {[%emt 0:00:03]} 31. Rf3 {[%emt 0:00:27]} Bxb1 {[%emt 0:00:15]} 32. Rxb1 {[%emt 0:00:01]} Rxf3 {[%emt 0:00:10]} 33. Qxf3 {[%emt 0:00:06]} Rc8 {[%emt 0:00:01]} 34. Ne3 {[%emt 0:00:19]} Rf8 {[%emt 0:00:10]} 35. Qe2 {[%emt 0:00:38]} Qg5 {[%emt 0:00:20]} 36. Bh2 {[%emt 0:01:01]} Nge6 {[%emt 0:00:01]} 37. Nd5 {[%emt 0:00:15]} Nd4 {[%emt 0:00:08]} 38. Qg4 {[%emt 0:00:22]} Qd2 {[%emt 0:01:13]} 39. Ne7 {[%emt 0:00:40]} Qf2+ {[%emt 0:00:47]} 40. Kh1 {[%emt 0:00:04]} Qf7 {[%emt 0:00:12]} 41. Nd5 {[%emt 0:00:10]} Rg8 {[%emt 0:00:01]} 42. Qd1 {[%emt 0:00:28]} Qg6 {[%emt 0:00:19]} 43. Ne3 {[%emt 0:00:10]} Ne4 {[%emt 0:00:06]} 44. Rb2 {[%emt 0:00:11]} Qg5 {[%emt 0:00:14]} 45. Qg1 {[%emt 0:00:08]} Ng3+ {[%emt 0:00:15]} 46. Bxg3 {[%emt 0:00:02]} Qxg3 {[%emt 0:00:01]} 47. Qf2 {[%emt 0:00:08]} Rg7 {[%emt 0:00:10]} 48. Rd2 {[%emt 0:00:10]} Qxf2 {[%emt 0:00:04]} 49. Rxf2 {[%emt 0:00:00]} Rg3 {[%emt 0:00:04]} 50. Nd5 {[%emt 0:00:09]} Rd3 {[%emt 0:00:10]} 51. Rf6 {[%emt 0:00:08]} Rd1+ {[%emt 0:00:02]} 52. Kh2 {[%emt 0:00:01]} Rd2 {[%emt 0:00:00]} 53. Rxd6 {[%emt 0:00:05]} Rxa2 {[%emt 0:00:02]} 54. Nf6+ {[%emt 0:00:07]} Kg6 {[%emt 0:00:08]} 55. Ng4+ {[%emt 0:00:02]} Kf5 {[%emt 0:00:05]} 56. Nxh6+ {[%emt 0:00:10]} Kf4 {[%emt 0:00:03]} 57. Rf6+ {[%emt 0:00:00]} Ke4 {[%emt 0:00:01]} 58. Ng4 {[%emt 0:00:04]} Nxb3 {[%emt 0:00:07]} 59. Re6 {[%emt 0:00:05]} Nd2 {[%emt 0:00:03]} 60. Rxe5+ {[%emt 0:00:02]} Kd4 {[%emt 0:00:04]} 61. Kg3 {[%emt 0:00:22]} b3 {[%emt 0:00:06]} 62. Rd5+ {[%emt 0:00:05]} Kxc4 {[%emt 0:00:08]} 63. Ne3+ {[%emt 0:00:01]} Kb4 {[%emt 0:00:09]} 64. Nd1 {[%emt 0:00:06]} Nc4 {[%emt 0:00:06]} 65. Rd8 {[%emt 0:00:05]} Rd2 {[%emt 0:00:06]} 66. Rb8+ {[%emt 0:00:04]} Ka3 {[%emt 0:00:00]} 67. Nf2 {[%emt 0:00:01]} b2 {[%emt 0:00:12]} 68. h4 {[%emt 0:00:06]} Rd6 {[%emt 0:00:05]} 69. Ne4 {[%emt 0:00:08]} Rb6 {[%emt 0:00:06]} 70. Rxb6 {[%emt 0:00:03]} Nxb6 {[%emt 0:00:01]} 71. Nd2 {[%emt 0:00:01]} Ka2 {[%emt 0:00:06]} 72. h5 {[%emt 0:00:01]} Nd7 {[%emt 0:00:04]} 73. h6 {[%emt 0:00:04]} Nf8 {[%emt 0:00:04]} 74. Kf4 {[%emt 0:00:03]} b1=Q {[%emt 0:00:02]} 75. Nxb1 {[%emt 0:00:01]} Kxb1 {[%emt 0:00:01]} 76. g4 {[%emt 0:00:04]} a4 {[%emt 0:00:01]} 77. g5 {[%emt 0:00:00]} a3 {[%emt 0:00:02]} 78. h7 {[%emt 0:00:03]} Nxh7 {[%emt 0:00:12]} 79. g6 {[%emt 0:00:03]} Nf6 {[%emt 0:00:01]} 80. Kf5 {[%emt 0:00:05]} Ne8 {[%emt 0:00:01]} 81. Ke6 {[%emt 0:00:01]} a2 {[%emt 0:00:01]} 82. Kf7 {[%emt 0:00:02]} a1=Q {[%emt 0:00:03]} 83. Kxe8 {[%emt 0:00:01]} Qg7 {[%emt 0:00:02]} 0-1

[Event "ESP-ch Rapid 2018"]
[Site "Linares"]
[Date "2018.08.19"]
[Round "7"]
[White "Roldan Marques, Daniel"]
[Black "Garcia Cuenca, Victor"]
[Result "0-1"]
[ECO "A57"]
[WhiteElo "2161"]
[BlackElo "2351"]
[Annotator "NA"]
[PlyCount "108"]
[EventDate "2018.08.19"]
[EventType "team-tourn"]
[EventCountry "ESP"]
[SourceTitle "playchess.com"]
[Source "ChessBase"]
[SourceQuality "1"]
[TimeControl "900+5"]

1. d4 {[%emt 0:00:00]} Nf6 {[%emt 0:00:00]} 2. c4 {[%emt 0:00:00]} c5 {[%emt 0:00:00]} 3. d5 {[%emt 0:00:00]} b5 {[%emt 0:00:00]} 4. cxb5 {[%emt 0:00:02]} a6 {[%emt 0:00:00]} 5. f3 {[%emt 0:00:01]} axb5 {[%emt 0:01:17]} 6. e4 {[%emt 0:00:02]} d6 {[%emt 0:00:03]} 7. Bxb5+ {[%emt 0:00:16]} Nfd7 {[%emt 0:00:04]} 8. Nc3 {[%emt 0:00:34]} g6 {[%emt 0:00:02]} 9. Nge2 {[%emt 0:00:07]} Bg7 {[%emt 0:00:02]} 10. O-O {[%emt 0:00:05]} O-O {[%emt 0:00:03]} 11. b3 {[%emt 0:01:05]} Na6 {[%emt 0:00:07]} 12. Bb2 {[%emt 0:00:06]} Qb6 {[%emt 0:01:05]} 13. Bc4 {[%emt 0:01:14]} Ne5 {[%emt 0:00:07]} 14. Na4 {[%emt 0:01:22]} Qb7 {[%emt 0:01:40]} 15. Bxa6 {[%emt 0:03:14]} Qxa6 {[%emt 0:00:07]} 16. f4 {[%emt 0:00:13]} Ng4 {[%emt 0:00:54]} 17. Bxg7 {[%emt 0:00:35]} Kxg7 {[%emt 0:00:03]} 18. Qd2 {[%emt 0:00:28]} Qa5 {[%emt 0:00:28]} 19. Qb2+ {[%emt 0:01:34]} Kg8 {[%emt 0:00:02]} 20. h3 {[%emt 0:00:13]} Nf6 {[%emt 0:00:01]} 21. Nac3 {[%emt 0:00:05]} Ba6 {[%emt 0:00:16]} 22. Rf2 {[%emt 0:00:55]} Qb4 {[%emt 0:00:23]} 23. e5 {[%emt 0:01:10]} Nd7 {[%emt 0:00:17]} 24. exd6 {[%emt 0:00:17]} exd6 {[%emt 0:00:03]} 25. f5 {[%emt 0:01:00]} Ne5 {[%emt 0:00:36]} 26. Rf4 {[%emt 0:01:00]} Nd3 {[%emt 0:00:35]} 27. Rxb4 {[%emt 0:00:17]} Nxb2 {[%emt 0:00:02]} 28. Rb6 {[%emt 0:00:05]} Rfd8 {[%emt 0:00:05]} 29. Ng3 {[%emt 0:00:07]} Bc8 {[%emt 0:01:07]} 30. f6 {[%emt 0:00:47]} Nd3 {[%emt 0:00:36]} 31. Nge4 {[%emt 0:00:06]} Ra6 {[%emt 0:02:25]} 32. Rb8 {[%emt 0:00:02]} Ne5 {[%emt 0:00:02]} 33. Re1 {[%emt 0:00:24]} Nd7 {[%emt 0:00:02]} 34. Rb5 {[%emt 0:00:01]} Kf8 {[%emt 0:00:56]} 35. a4 {[%emt 0:00:01]} Re8 {[%emt 0:00:40]} 36. Kf1 {[%emt 0:00:07]} Re5 {[%emt 0:00:03]} 37. g4 {[%emt 0:00:10]} h6 {[%emt 0:00:06]} 38. Nd2 {[%emt 0:00:06]} Rxe1+ {[%emt 0:01:10]} 39. Kxe1 {[%emt 0:00:01]} Ke8 {[%emt 0:00:15]} 40. Nce4 {[%emt 0:00:01]} Ne5 {[%emt 0:00:15]} 41. Nc4 {[%emt 0:00:08]} Nxc4 {[%emt 0:00:19]} 42. bxc4 {[%emt 0:00:00]} Kd7 {[%emt 0:00:12]} 43. a5 {[%emt 0:00:01]} Kc7 {[%emt 0:00:40]} 44. Rb6 {[%emt 0:00:06]} Bb7 {[%emt 0:00:31]} 45. Ke2 {[%emt 0:00:26]} Rxa5 {[%emt 0:00:05]} 46. Rxd6 {[%emt 0:00:03]} Ra2+ {[%emt 0:00:12]} 47. Kf3 {[%emt 0:00:07]} Ra3+ {[%emt 0:00:13]} 48. Kf2 {[%emt 0:00:09]} Rxh3 {[%emt 0:00:14]} 49. Nxc5 {[%emt 0:00:04]} Kxd6 {[%emt 0:00:04]} 50. Nxb7+ {[%emt 0:00:02]} Kc7 {[%emt 0:00:03]} 51. Nc5 {[%emt 0:00:02]} Rc3 {[%emt 0:00:03]} 52. d6+ {[%emt 0:00:04]} Kc6 {[%emt 0:00:16]} 53. d7 {[%emt 0:00:12]} Kc7 {[%emt 0:00:00]} 54. Ne6+ {[%emt 0:00:05]} Kxd7 {[%emt 0:00:05]} 0-1

[Event "ESP-ch Rapid 2018"]
[Site "Linares"]
[Date "2018.08.19"]
[Round "7"]
[White "Riquelme Valero, Manuel Damian"]
[Black "Vazquez Pino, Miguel A"]
[Result "0-1"]
[ECO "E20"]
[WhiteElo "2150"]
[BlackElo "1909"]
[Annotator "NA"]
[PlyCount "131"]
[EventDate "2018.08.19"]
[EventType "team-tourn"]
[EventCountry "ESP"]
[SourceTitle "playchess.com"]
[Source "ChessBase"]
[SourceQuality "1"]
[TimeControl "900+5"]

1. d4 {[%emt 0:00:00]} Nf6 {[%emt 0:00:00]} 2. c4 {[%emt 0:00:00]} e6 {[%emt 0:00:00]} 3. Nc3 {[%emt 0:00:00]} Bb4 {[%emt 0:00:00]} 4. f3 {[%emt 0:00:00]} d5 {[%emt 0:00:14]} 5. a3 {[%emt 0:00:03]} Bxc3+ {[%emt 0:00:08]} 6. bxc3 {[%emt 0:00:01]} O-O {[%emt 0:00:02]} 7. cxd5 {[%emt 0:00:04]} exd5 {[%emt 0:00:02]} 8. e3 Bf5 {[%emt 0:00:13]} 9. Ne2 {[%emt 0:00:03]} Nbd7 {[%emt 0:00:14]} 10. g4 {[%emt 0:00:10]} Bg6 {[%emt 0:00:03]} 11. h4 {[%emt 0:00:01]} h5 {[%emt 0:00:06]} 12. g5 {[%emt 0:00:07]} Ne8 {[%emt 0:00:08]} 13. Nf4 {[%emt 0:00:02]} c6 {[%emt 0:00:10]} 14. Nxg6 {[%emt 0:00:58]} fxg6 {[%emt 0:00:01]} 15. Bd3 {[%emt 0:00:01]} Qc7 {[%emt 0:00:01]} 16. Kf2 {[%emt 0:00:23]} Qd6 {[%emt 0:00:45]} 17. a4 {[%emt 0:00:01]} b6 {[%emt 0:00:07]} 18. f4 {[%emt 0:01:05]} c5 {[%emt 0:00:01]} 19. Kg2 {[%emt 0:00:39]} Nc7 {[%emt 0:00:23]} 20. Rf1 {[%emt 0:00:16]} Rae8 {[%emt 0:00:15]} 21. Ra2 {[%emt 0:00:20]} Qe6 {[%emt 0:00:54]} 22. Raf2 {[%emt 0:00:38]} Rf5 {[%emt 0:01:00]} 23. Qf3 {[%emt 0:01:34]} c4 {[%emt 0:00:33]} 24. Bc2 {[%emt 0:00:16]} Nb8 {[%emt 0:00:33]} 25. Re1 {[%emt 0:00:26]} Rf7 {[%emt 0:00:28]} 26. f5 {[%emt 0:00:26]} Qd7 {[%emt 0:00:37]} 27. Qh3 {[%emt 0:00:23]} Ref8 {[%emt 0:00:03]} 28. Ref1 {[%emt 0:00:01]} gxf5 {[%emt 0:00:10]} 29. Rxf5 {[%emt 0:00:56]} Rxf5 {[%emt 0:00:08]} 30. Rxf5 {[%emt 0:00:11]} Rxf5 {[%emt 0:00:01]} 31. Qxf5 {[%emt 0:00:07]} Qxf5 {[%emt 0:00:11]} 32. Bxf5 {[%emt 0:00:02]} Kf7 {[%emt 0:00:02]} 33. Ba3 {[%emt 0:00:52]} g6 {[%emt 0:00:01]} 34. Bc2 {[%emt 0:00:18]} b5 {[%emt 0:00:15]} 35. Bd6 {[%emt 0:00:55]} Nba6 {[%emt 0:00:01]} 36. a5 {[%emt 0:00:06]} Ne8 {[%emt 0:00:08]} 37. Ba3 {[%emt 0:00:39]} Nb8 {[%emt 0:00:13]} 38. e4 {[%emt 0:00:14]} Nc6 {[%emt 0:00:10]} 39. exd5 {[%emt 0:00:27]} Nxa5 {[%emt 0:00:02]} 40. d6 {[%emt 0:00:03]} Nb7 {[%emt 0:00:49]} 41. d7 {[%emt 0:00:08]} Nc7 {[%emt 0:00:07]} 42. Kf3 {[%emt 0:00:40]} Nd8 {[%emt 0:00:02]} 43. Bc5 {[%emt 0:00:20]} Nd5 {[%emt 0:00:09]} 44. Ke4 {[%emt 0:01:26]} Nxc3+ {[%emt 0:00:02]} 45. Ke5 {[%emt 0:00:01]} a5 {[%emt 0:00:28]} 46. Kd6 {[%emt 0:00:12]} b4 {[%emt 0:00:03]} 47. Bb6 {[%emt 0:00:15]} b3 {[%emt 0:00:03]} 48. Bb1 {[%emt 0:01:08]} Nb5+ {[%emt 0:00:13]} 49. Kc5 {[%emt 0:00:07]} c3 {[%emt 0:00:03]} 50. Bxd8 {[%emt 0:00:06]} c2 {[%emt 0:00:01]} 51. Bf6 {[%emt 0:00:20]} c1=Q+ {[%emt 0:00:02]} 52. Kxb5 {[%emt 0:00:02]} Qxb1 {[%emt 0:01:04]} 53. d8=Q {[%emt 0:00:03]} Qd3+ {[%emt 0:00:05]} 54. Kxa5 {[%emt 0:00:03]} Qc3+ {[%emt 0:00:02]} 55. Kb5 {[%emt 0:00:19]} Qd3+ {[%emt 0:00:05]} 56. Ka5 {[%emt 0:00:06]} Qc3+ {[%emt 0:00:03]} 57. Ka4 {[%emt 0:00:27]} Qc4+ {[%emt 0:00:07]} 58. Ka3 {[%emt 0:00:02]} Qa6+ {[%emt 0:00:07]} 59. Kxb3 {[%emt 0:00:01]} Qd3+ {[%emt 0:00:01]} 60. Kb4 {[%emt 0:00:01]} Qb1+ {[%emt 0:00:07]} 61. Kc5 {[%emt 0:00:02]} Qc2+ {[%emt 0:00:01]} 62. Kd5 {[%emt 0:00:01]} Qf5+ {[%emt 0:00:09]} 63. Kc6 {[%emt 0:00:03]} Qc2+ {[%emt 0:00:03]} 64. Kb7 {[%emt 0:00:02]} Qe4+ {[%emt 0:00:25]} 65. Kb8 {[%emt 0:00:04]} Qb1+ {[%emt 0:00:03]} 66. Kc8 {[%emt 0:00:03]} 0-1